fUST/lending_fUST_20251010
["ID","MTS","AMOUNT","RATE_DAILY","PERIOD"]
[390572660,1760088649169,-824.0,0.0001726,2]
[390572662,1760088649178,-151.0,0.0001726,2]
[390572664,1760088649187,-500.0,0.0001726,2]
[390572666,1760088649196,-500.0,0.0001726,2]
[390572668,1760088649205,-151.0,0.0001726,2]
[390572670,1760088649214,-535.0,0.0001726,2]
[390572672,1760088649223,-576.67,0.0001726,2]
[390572674,1760088649232,-500.0,0.0001726,2]
[390572676,1760088649241,-837.41,0.0001726,2]
[390572678,1760088649250,-500.0,0.0001726,2]
[390572680,1760088649259,-151.0,0.0001726,2]
[390572682,1760088649267,-500.0,0.0001726,2]
[390572684,1760088649276,-599.1752313,0.0001726,2]
[390572686,1760088649288,-151.0,0.0001726,2]
[390572688,1760088649301,-151.0,0.0001726,2]
[390572691,1760088649311,-151.0,0.0001726,2]
[390572693,1760088649320,-953.69,0.0001726,2]
[390572695,1760088649331,-1070.62,0.0001726,2]
[390572696,1760088649340,-500.0,0.0001726,2]
[390572698,1760088649349,-883.84,0.0001726,2]
[390572700,1760088649357,-153.085781,0.0001726,2]
[390572702,1760088649367,-524.76,0.0001726,2]
[390572704,1760088649376,-564.02757108,0.0001726,2]
[390572707,1760088649386,-586.93,0.0001726,2]
[390572709,1760088649395,-567.03,0.0001726,2]
[390572711,1760088649405,-500.0,0.0001726,2]
[390572713,1760088649414,-2042.44,0.0001726,2]
[390572715,1760088649422,-1871.6,0.0001726,2]
[390572717,1760088649431,-500.0,0.0001726,2]
[390572719,1760088649440,-500.0,0.0001726,2]
[390572721,1760088649449,-151.0,0.0001726,2]
[390572723,1760088649458,-151.0,0.0001726,2]
[390572725,1760088649467,-500.0,0.0001726,2]
[390572727,1760088649476,-151.0,0.0001726,2]
[390572729,1760088649485,-500.0,0.0001726,2]
[390572731,1760088649494,-151.0,0.0001726,2]
[390572733,1760088649503,-500.0,0.0001726,2]
[390572735,1760088649513,-500.0,0.0001726,2]
[390572737,1760088649522,-2941.58,0.0001726,2]
[390572739,1760088649531,-849.13,0.0001726,2]
[390572741,1760088649540,-500.0,0.0001726,2]
[390572743,1760088649550,-546.59,0.0001726,2]
[390572745,1760088649559,-500.0,0.0001726,2]
[390572747,1760088649568,-212.949088,0.0001726,2]
[390572749,1760088649577,-234.86366,0.0001726,2]
[390572751,1760088649586,-212.949088,0.0001726,2]
[390572753,1760088649595,-678.01,0.0001726,2]
[390572755,1760088649604,-212.949088,0.0001726,2]
[390572757,1760088649614,-212.949088,0.0001726,2]
[390572759,1760088649624,-1856.57,0.0001726,2]
[390572761,1760088649633,-500.0,0.0001726,2]
[390572763,1760088649641,-484.206773,0.0001726,2]
[390572765,1760088649651,-288.72334553,0.000173,2]
[390572767,1760088649660,-920.0,0.00017315,2]
[390572769,1760088649669,-310.0,0.00017324,2]
[390572771,1760088649679,-168.10077245,0.00017327,2]
[390572773,1760088649688,-601.56279864,0.00017359,2]
[390572775,1760088649697,-920.0,0.0001737,2]
[390572777,1760088649706,-272.90988032,0.00017372,2]
[390572779,1760088649715,-6327.1782296,0.00017383,2]
[390572781,1760088649724,-920.0,0.00017424,2]
[390572783,1760088649734,-2159.0,0.0001744,2]
[390572785,1760088649743,-630.0,0.0001744,2]
[390572787,1760088649753,-411.0,0.0001744,2]
[390572789,1760088649762,-414.167,0.0001744,2]
[390572791,1760088649771,-320.003172,0.0001744,2]
[390572793,1760088649780,-320.003172,0.0001744,2]
[390572795,1760088649789,-320.003172,0.0001744,2]
[390572797,1760088649799,-320.003172,0.0001744,2]
[390572800,1760088649808,-151.0,0.0001744,2]
[390572802,1760088649818,-151.0,0.0001744,2]
[390572804,1760088649827,-151.0,0.0001744,2]
[390572806,1760088649836,-151.0,0.0001744,2]
[390572808,1760088649845,-151.0,0.0001744,2]
[390572810,1760088649855,-151.0,0.0001744,2]
[390572811,1760088649864,-185.618188,0.0001744,2]
[390572814,1760088649874,-2112.197999,0.00017445,2]
[390572816,1760088649884,-3331.7939104,0.00017445,2]
[390572818,1760088649893,-189.6925741,0.00017454,2]
[390572820,1760088649903,-408.35012715,0.00017471,2]
[390572822,1760088649912,-920.0,0.00017479,2]
[390572824,1760088649921,-228.4970926,0.00017489,2]
[390572826,1760088649931,-4195.0,0.0001749,2]
[390572828,1760088649940,-288.72334553,0.000175,2]
[390572830,1760088649950,-151.0,0.000175,2]
[390572832,1760088649958,-310.0,0.00017505,2]
[390572834,1760088649967,-176.15787032,0.00017533,2]
[390572836,1760088649977,-449.98802523,0.00017533,2]
[390572838,1760088649986,-920.0,0.00017534,2]
[390572840,1760088649994,-500.0,0.00017534,2]
[390572842,1760088650003,-500.0,0.00017534,2]
[390572844,1760088650012,-500.0,0.00017534,2]
[390572846,1760088650021,-500.0,0.00017534,2]
[390572848,1760088650031,-500.0,0.00017534,2]
[390572850,1760088650039,-530.0,0.00017534,2]
[390572852,1760088650048,-979.71,0.00017534,2]
[390572854,1760088650057,-151.921519,0.00017534,2]
[390572856,1760088650066,-500.0,0.00017534,2]
[390572858,1760088650075,-500.0,0.00017534,2]
[390572860,1760088650084,-154.856397,0.00017534,2]
[390572862,1760088650093,-707.93,0.00017534,2]
[390572864,1760088650102,-500.0,0.00017534,2]
[390572866,1760088650111,-607.91700275,0.00017534,2]
[390572868,1760088650120,-500.0,0.00017534,2]
[390572870,1760088650128,-851.73,0.00017534,2]
[390572872,1760088650137,-500.0,0.00017534,2]
[390572874,1760088650146,-877.86,0.00017534,2]
[390572876,1760088650156,-500.0,0.00017534,2]
[390572878,1760088650165,-500.0,0.00017534,2]
[390572880,1760088650174,-887.02,0.00017534,2]
[390572882,1760088650183,-151.0,0.00017534,2]
[390572884,1760088650192,-500.0,0.00017534,2]
[390572886,1760088650201,-151.0,0.00017534,2]
[390572888,1760088650210,-151.0,0.00017534,2]
[390572890,1760088650219,-151.0,0.00017534,2]
[390572892,1760088650228,-500.0,0.00017534,2]
[390572894,1760088650237,-151.0,0.00017534,2]
[390572896,1760088650246,-346.75919726,0.00017534,2]
[390572898,1760088650254,-758.92,0.00017534,2]
[390572900,1760088650263,-1049.28,0.00017534,2]
[390572902,1760088650272,-151.0,0.00017534,2]
[390572904,1760088650281,-539.0,0.00017534,2]
[390572906,1760088650292,-1486.56,0.00017534,2]
[390572908,1760088650301,-751.57,0.00017534,2]
[390572910,1760088650311,-151.0,0.00017534,2]
[390572912,1760088650320,-500.0,0.00017534,2]
[390572914,1760088650329,-500.0,0.00017534,2]
[390572916,1760088650340,-838.24,0.00017534,2]
[390572918,1760088650349,-859.92,0.00017534,2]
[390572920,1760088650359,-151.0,0.00017534,2]
[390572922,1760088650369,-151.0,0.00017534,2]
[390572924,1760088650378,-151.0,0.00017534,2]
[390572926,1760088650387,-300.0,0.00017534,2]
[390572928,1760088650397,-151.0,0.00017534,2]
[390572930,1760088650407,-500.0,0.00017534,2]
[390572932,1760088650416,-500.0,0.00017534,2]
[390572934,1760088650425,-500.0,0.00017534,2]
[390572936,1760088650434,-830.36,0.00017534,2]
[390572938,1760088650442,-151.0,0.00017534,2]
[390572940,1760088650451,-151.0,0.00017534,2]
[390572942,1760088650462,-151.0,0.00017534,2]
[390572944,1760088650471,-151.0,0.00017534,2]
[390572946,1760088650481,-151.0,0.00017534,2]
[390572948,1760088650490,-151.0,0.00017534,2]
[390572950,1760088650499,-151.0,0.00017534,2]
[390572952,1760088650508,-500.0,0.00017534,2]
[390572954,1760088650518,-151.0,0.00017534,2]
[390572956,1760088650528,-1208.73,0.00017534,2]
[390572958,1760088650537,-550.15,0.00017534,2]
[390572960,1760088650546,-500.0,0.00017534,2]
[390572962,1760088650555,-500.0,0.00017534,2]
[390572964,1760088650564,-151.0,0.00017534,2]
[390572966,1760088650573,-5536.12,0.00017534,2]
[390572968,1760088650582,-151.0,0.00017534,2]
[390572970,1760088650591,-500.0,0.00017534,2]
[390572972,1760088650600,-500.0,0.00017534,2]
[390572974,1760088650609,-500.0,0.00017534,2]
[390572976,1760088650618,-500.0,0.00017534,2]
[390572978,1760088650627,-500.0,0.00017534,2]
[390572980,1760088650636,-500.0,0.00017534,2]
[390572982,1760088650645,-500.0,0.00017534,2]
[390572984,1760088650655,-500.0,0.00017534,2]
[390572987,1760088650665,-814.96,0.00017534,2]
[390572989,1760088650674,-500.0,0.00017534,2]
[390572991,1760088650684,-500.0,0.00017534,2]
[390572993,1760088650693,-500.0,0.00017534,2]
[390572995,1760088650702,-151.0,0.00017534,2]
[390572997,1760088650711,-500.0,0.00017534,2]
[390572999,1760088650719,-5198.42,0.00017534,2]
[390573001,1760088650728,-534.40182999,0.00017534,2]
[390573003,1760088650737,-500.0,0.00017534,2]
[390573005,1760088650746,-500.0,0.00017534,2]
[390573007,1760088650755,-500.0,0.00017534,2]
[390573009,1760088650764,-500.0,0.00017534,2]
[390573011,1760088650774,-596.13888638,0.00017534,2]
[390573013,1760088650783,-500.0,0.00017534,2]
[390573015,1760088650792,-442.46309314,0.00017534,2]
[390573036,1760088650979,-354.18690686,0.00017534,2]
[390573038,1760088650987,-500.0,0.00017534,2]
[390573040,1760088650996,-424.83856386,0.00017534,2]
[390573042,1760088651007,-263.85143614,0.00017534,2]
[390573044,1760088651016,-500.0,0.00017534,2]
[390573046,1760088651025,-5919.66,0.00017534,2]
[390573048,1760088651034,-500.0,0.00017534,2]
[390573050,1760088651043,-500.0,0.00017534,2]
[390573052,1760088651052,-1311.28,0.00017534,2]
[390573054,1760088651061,-2026.05,0.00017534,2]
[390573056,1760088651071,-500.0,0.00017534,2]
[390573058,1760088651080,-500.0,0.00017534,2]
[390573060,1760088651089,-733.67,0.00017534,2]
[390573062,1760088651098,-500.0,0.00017534,2]
[390573064,1760088651107,-500.0,0.00017534,2]
[390573066,1760088651116,-2864.7,0.00017534,2]
[390573068,1760088651125,-2321.08,0.00017534,2]
[390573070,1760088651134,-500.0,0.00017534,2]
[390573072,1760088651142,-820.16,0.00017534,2]
[390573074,1760088651151,-500.0,0.00017534,2]
[390573076,1760088651160,-500.0,0.00017534,2]
[390573078,1760088651169,-500.0,0.00017534,2]
[390573080,1760088651179,-818.49,0.00017534,2]
[390573082,1760088651188,-908.74,0.00017534,2]
[390573084,1760088651197,-153.866277,0.00017534,2]
[390573086,1760088651206,-1337.13,0.00017534,2]
[390573088,1760088651214,-500.0,0.00017534,2]
[390573090,1760088651223,-1209.77,0.00017534,2]
[390573092,1760088651232,-151.0,0.00017534,2]
[390573094,1760088651242,-151.0,0.00017534,2]
[390573096,1760088651252,-641.14,0.00017534,2]
[390573097,1760088651260,-500.0,0.00017534,2]
[390573098,1760088651269,-500.0,0.00017534,2]
[390573099,1760088651278,-1146.44,0.00017534,2]
[390573100,1760088651288,-655.84,0.00017534,2]
[390573101,1760088651299,-500.0,0.00017534,2]
[390573102,1760088651308,-639.14,0.00017534,2]
[390573103,1760088651316,-500.0,0.00017534,2]
[390573104,1760088651325,-3630.45,0.00017534,2]
[390573105,1760088651336,-500.0,0.00017534,2]
[390573106,1760088651345,-500.0,0.00017534,2]
[390573107,1760088651354,-558.39,0.00017534,2]
[390573108,1760088651364,-500.0,0.00017534,2]
[390573109,1760088651373,-3757.14,0.00017534,2]
[390573111,1760088651383,-623.76,0.00017534,2]
[390573113,1760088651392,-500.0,0.00017534,2]
[390573115,1760088651401,-731.68,0.00017534,2]
[390573117,1760088651410,-832.61,0.00017534,2]
[390573119,1760088651419,-4375.24455273,0.00017534,2]
[390573122,1760088651431,-438.82544727,0.00017534,2]
[390573124,1760088651439,-500.0,0.00017534,2]
[390573125,1760088651449,-500.0,0.00017534,2]
[390573128,1760088651460,-1826.19,0.00017534,2]
[390573129,1760088651469,-2290.53,0.00017534,2]
[390573131,1760088651478,-500.0,0.00017534,2]
[390573133,1760088651488,-500.0,0.00017534,2]
[390573135,1760088651497,-500.0,0.00017534,2]
[390573137,1760088651507,-500.0,0.00017534,2]
[390573139,1760088651515,-293.95413874,0.00017534,2]
[390573142,1760088651526,-225.53586126,0.00017534,2]
[390573144,1760088651535,-2123.47,0.00017534,2]
[390573146,1760088651544,-1131.56,0.00017534,2]
[390573147,1760088651553,-1010.6,0.00017534,2]
[390573149,1760088651562,-500.0,0.00017534,2]
[390573151,1760088651571,-824.0,0.00017534,2]
[390573153,1760088651580,-151.0,0.00017534,2]
[390573155,1760088651589,-500.0,0.00017534,2]
[390573157,1760088651598,-500.0,0.00017534,2]
[390573159,1760088651607,-151.0,0.00017534,2]
[390573161,1760088651616,-535.0,0.00017534,2]
[390573163,1760088651625,-576.67,0.00017534,2]
[390573165,1760088651634,-500.0,0.00017534,2]
[390573167,1760088651643,-837.41,0.00017534,2]
[390573169,1760088651652,-500.0,0.00017534,2]
[390573171,1760088651660,-151.0,0.00017534,2]
[390573173,1760088651669,-503.73678477,0.00017534,2]
[390573175,1760088651678,-151.0,0.00017534,2]
[390573177,1760088651687,-151.0,0.00017534,2]
[390573179,1760088651695,-953.69,0.00017534,2]
[390573181,1760088651704,-1070.62,0.00017534,2]
[390573183,1760088651713,-883.84,0.00017534,2]
[390573185,1760088651722,-215.25628619,0.00017534,2]
[390573187,1760088651731,-524.76,0.00017534,2]
[390573189,1760088651740,-586.93,0.00017534,2]
[390573191,1760088651749,-567.03,0.00017534,2]
[390573193,1760088651758,-500.0,0.00017534,2]
[390573195,1760088651767,-2042.44,0.00017534,2]
[390573197,1760088651778,-1871.6,0.00017534,2]
[390573199,1760088651787,-500.0,0.00017534,2]
[390573201,1760088651797,-500.0,0.00017534,2]
[390573203,1760088651806,-151.0,0.00017534,2]
[390573205,1760088651815,-151.0,0.00017534,2]
[390573206,1760088651824,-296.92365624,0.00017534,2]
[390573225,1760088651980,-151.0,0.00017534,2]
[390573227,1760088651990,-500.0,0.00017534,2]
[390573229,1760088651999,-157.278944,0.00017534,2]
[390573230,1760088652009,-156.4670574,0.00017534,2]
[390573233,1760088652021,-343.5329426,0.00017534,2]
[390573235,1760088652031,-500.0,0.00017534,2]
[390573237,1760088652040,-192.8870574,0.00017534,2]
[390573266,1760088652306,-3e-08,0.00016438,2]
[390573295,1760088652573,-1602.12999997,0.00016438,2]
[390573297,1760088652583,-578.1668779,0.00016438,2]
[390573299,1760088652591,-500.0,0.00016438,2]
[390573301,1760088652600,-502.33835754,0.00016438,2]
[390573303,1760088652610,-500.0,0.00016712,2]
[390573305,1760088652619,-1602.13,0.00016712,2]
[390573306,1760088652628,-500.0,0.00016712,2]
[390573308,1760088652637,-484.206773,0.00016931,2]
[390573310,1760088652647,-151.0,0.00016931,2]
[390573312,1760088652657,-484.206773,0.00016931,2]
[390573314,1760088652667,-484.206773,0.00016931,2]
[390573316,1760088652680,-153.43098687,0.00016986,2]
[390573318,1760088652690,-484.206773,0.00016986,2]
[390573320,1760088652699,-616.51668574,0.00016986,2]
[390574039,1760088765039,20000.0,0.00024,30]
[390574047,1760088948211,1000.0,0.00027397,120]
[390574049,1760089067688,5000.0,0.00028767,120]
[390574050,1760089080628,191.69,0.00015205,2]
[390574052,1760089168981,10000.0,0.00024,30]
[390574054,1760089192604,455.0946294,0.00015519,2]
[390574061,1760089245511,11203.68,0.00024,30]
[390574064,1760089261608,1000.0,0.00027397,120]
[390574067,1760089572135,1000.0,0.00027397,120]
[390574103,1760089832112,-636.04104249,0.00016261,2]
[390574105,1760089832122,-295.22524333,0.00016261,2]
[390574107,1760089832131,-1200.0,0.00016337,2]
[390574109,1760089832140,-300.0,0.00016337,2]
[390574111,1760089832149,-291.8144866,0.00016338,2]
[390574113,1760089832158,-162.42423305,0.00016338,2]
[390574115,1760089832168,-11415.47328536,0.00016338,2]
[390574117,1760089832178,-527.67,0.00016428,3]
[390574118,1760089832187,-415.5,0.00016428,3]
[390574121,1760089832196,-207.75,0.00016428,3]
[390574123,1760089832205,-623.3,0.00016428,3]
[390574125,1760089832216,-500.0,0.00016437,2]
[390574126,1760089832225,-556.61604708,0.00016437,2]
[390574128,1760089832234,-560.0,0.00016438,2]
[390574129,1760089832244,-500.0,0.00016438,2]
[390574130,1760089832253,-314.15608775,0.00016438,2]
[390574131,1760089832262,-502.63638738,0.00016438,2]
[390574132,1760089832271,-171.20475487,0.00016438,2]
[390574133,1760089832280,-500.0,0.00016438,2]
[390574134,1760089832288,-500.0,0.00016438,2]
[390574135,1760089832297,-500.84245215,0.00016438,2]
[390574136,1760089832306,-500.0,0.00016438,2]
[390574137,1760089832316,-400.42263561,0.00016438,2]
[390574138,1760089832325,-500.0,0.00016438,2]
[390574139,1760089832334,-500.0,0.00016438,2]
[390574140,1760089832343,-500.0,0.00016438,2]
[390574141,1760089832352,-500.0,0.00016438,2]
[390574142,1760089832362,-452.80872985,0.00016438,2]
[390574143,1760089832371,-500.0,0.00016438,2]
[390574144,1760089832380,-500.0,0.00016438,2]
[390574145,1760089832390,-500.0,0.00016438,2]
[390574146,1760089832400,-509.39896462,0.00016438,2]
[390574147,1760089832409,-500.0,0.00016438,2]
[390574148,1760089832587,-500.0,0.00016438,2]
[390574149,1760089832597,-886.49,0.00016438,2]
[390574150,1760089832608,-500.0,0.00016438,2]
[390574151,1760089832617,-500.0,0.00016438,2]
[390574152,1760089832626,-500.0,0.00016438,2]
[390574153,1760089832636,-500.0,0.00016438,2]
[390574154,1760089832645,-487.17678357,0.00016438,2]
[390574155,1760089832654,-500.0,0.00016438,2]
[390574156,1760089832663,-500.0,0.00016438,2]
[390574157,1760089832672,-500.0,0.00016438,2]
[390574158,1760089832682,-574.12956422,0.00016438,2]
[390574159,1760089832691,-193.40661863,0.00016438,2]
[390574160,1760089832700,-500.0,0.00016438,2]
[390574161,1760089832710,-501.5660037,0.00016438,2]
[390574162,1760089832721,-868.43,0.00016438,2]
[390574163,1760089832730,-500.0,0.00016438,2]
[390574164,1760089832739,-500.0,0.00016438,2]
[390574165,1760089832748,-500.0,0.00016438,2]
[390574166,1760089832757,-500.0,0.00016438,2]
[390574167,1760089832769,-500.0,0.00016438,2]
[390574168,1760089832779,-500.0,0.00016438,2]
[390574169,1760089832788,-500.0,0.00016438,2]
[390574170,1760089832798,-500.0,0.00016438,2]
[390574171,1760089832807,-500.0,0.00016438,2]
[390574172,1760089832817,-274.31233955,0.00016438,2]
[390574173,1760089832827,-500.0,0.00016438,2]
[390574174,1760089832837,-500.0,0.00016438,2]
[390574175,1760089832846,-884.28,0.00016438,2]
[390574176,1760089832858,-500.0,0.00016438,2]
[390574177,1760089832867,-500.0,0.00016438,2]
[390574178,1760089832876,-508.15463161,0.00016438,2]
[390574179,1760089832886,-500.0,0.00016438,2]
[390574180,1760089832895,-500.0,0.00016438,2]
[390574181,1760089832904,-500.0,0.00016438,2]
[390574182,1760089832914,-826.72,0.00016438,2]
[390574183,1760089832923,-500.0,0.00016438,2]
[390574184,1760089832932,-500.0,0.00016438,2]
[390574185,1760089832941,-500.0,0.00016438,2]
[390574186,1760089832951,-500.0,0.00016438,2]
[390574187,1760089832960,-500.0,0.00016438,2]
[390574188,1760089832972,-500.0,0.00016438,2]
[390574189,1760089832981,-933.22,0.00016438,2]
[390574190,1760089832991,-500.0,0.00016438,2]
[390574191,1760089833000,-500.0,0.00016438,2]
[390574192,1760089833009,-500.0,0.00016438,2]
[390574193,1760089833019,-500.0,0.00016438,2]
[390574194,1760089833029,-500.0,0.00016438,2]
[390574195,1760089833039,-500.0,0.00016438,2]
[390574196,1760089833048,-500.0,0.00016438,2]
[390574197,1760089833057,-500.0,0.00016438,2]
[390574198,1760089833067,-500.0,0.00016438,2]
[390574199,1760089833078,-500.0,0.00016438,2]
[390574200,1760089833088,-500.0,0.00016438,2]
[390574201,1760089833098,-502.85873749,0.00016438,2]
[390574202,1760089833108,-502.03276905,0.00016438,2]
[390574203,1760089833118,-500.0,0.00016438,2]
[390574204,1760089833128,-500.0,0.00016438,2]
[390574205,1760089833138,-500.0,0.00016438,2]
[390574206,1760089833148,-500.0,0.00016438,2]
[390574207,1760089833157,-394.3599574,0.00016438,2]
[390574208,1760089833167,-500.0,0.00016438,2]
[390574209,1760089833177,-500.0,0.00016438,2]
[390574210,1760089833186,-500.0,0.00016438,2]
[390574211,1760089833196,-774.25,0.00016438,2]
[390574212,1760089833205,-247.50407567,0.00016438,2]
[390574213,1760089833215,-500.0,0.00016438,2]
[390574214,1760089833225,-501.02881408,0.00016438,2]
[390574215,1760089833235,-1696.16,0.00016438,2]
[390574216,1760089833244,-500.0,0.00016438,2]
[390574217,1760089833253,-456.66154659,0.00016438,2]
[390574218,1760089833263,-500.0,0.00016438,2]
[390574219,1760089833272,-500.0,0.00016438,2]
[390574220,1760089833282,-500.0,0.00016438,2]
[390574221,1760089833291,-500.0,0.00016438,2]
[390574222,1760089833300,-500.0,0.00016438,2]
[390574223,1760089833309,-500.0,0.00016438,2]
[390574224,1760089833318,-500.0,0.00016438,2]
[390574225,1760089833328,-500.0,0.00016438,2]
[390574226,1760089833338,-501.29005317,0.00016438,2]
[390574227,1760089833347,-324.72575004,0.00016438,2]
[390574230,1760089837923,-721.98424996,0.00016438,2]
[390574231,1760089837933,-500.0,0.00016438,2]
[390574232,1760089837942,-500.0,0.00016438,2]
[390574233,1760089837951,-761.41,0.00016438,2]
[390574234,1760089837960,-500.0,0.00016438,2]
[390574235,1760089837970,-500.0,0.00016438,2]
[390574236,1760089837979,-500.0,0.00016438,2]
[390574237,1760089837989,-500.0,0.00016438,2]
[390574238,1760089837998,-500.0,0.00016438,2]
[390574239,1760089838007,-500.0,0.00016438,2]
[390574240,1760089838017,-500.0,0.00016438,2]
[390574241,1760089838026,-175.91563129,0.00016438,2]
[390574243,1760089838036,-500.0,0.00016438,2]
[390574245,1760089838046,-500.0,0.00016438,2]
[390574247,1760089838056,-500.0,0.00016438,2]
[390574249,1760089838066,-500.0,0.00016438,2]
[390574251,1760089838075,-554.32,0.00016438,2]
[390574253,1760089838085,-500.0,0.00016438,2]
[390574255,1760089838094,-500.0,0.00016438,2]
[390574257,1760089838104,-500.0,0.00016438,2]
[390574259,1760089838113,-500.0,0.00016438,2]
[390574260,1760089838123,-500.0,0.00016438,2]
[390574261,1760089838133,-501.01088953,0.00016438,2]
[390574263,1760089838143,-510.21595832,0.00016438,2]
[390574265,1760089838154,-504.27297388,0.00016438,2]
[390574267,1760089838164,-500.0,0.00016438,2]
[390574269,1760089838174,-500.0,0.00016438,2]
[390574271,1760089838183,-500.0,0.00016438,2]
[390574273,1760089838193,-500.0,0.00016438,2]
[390574274,1760089838203,-500.0,0.00016438,2]
[390574275,1760089838212,-500.0,0.00016438,2]
[390574276,1760089838224,-500.0,0.00016438,2]
[390574277,1760089838234,-500.0,0.00016438,2]
[390574279,1760089838243,-500.0,0.00016438,2]
[390574280,1760089838252,-500.0,0.00016438,2]
[390574282,1760089838261,-500.0,0.00016438,2]
[390574283,1760089838271,-500.0,0.00016438,2]
[390574284,1760089838280,-500.0,0.00016438,2]
[390574285,1760089838291,-1194.36,0.00016438,2]
[390574286,1760089838300,-500.0,0.00016438,2]
[390574287,1760089838310,-500.0,0.00016438,2]
[390574288,1760089838320,-500.0,0.00016438,2]
[390574289,1760089838329,-502.21924966,0.00016438,2]
[390574291,1760089838338,-500.0,0.00016438,2]
[390574292,1760089838348,-500.0,0.00016438,2]
[390574293,1760089838358,-6002.41,0.00016438,2]
[390574294,1760089838368,-500.0,0.00016438,2]
[390574295,1760089838378,-500.0,0.00016438,2]
[390574296,1760089838387,-502.11849293,0.00016438,2]
[390574297,1760089838396,-500.0,0.00016438,2]
[390574298,1760089838406,-500.0,0.00016438,2]
[390574299,1760089838416,-500.0,0.00016438,2]
[390574300,1760089838425,-500.0,0.00016438,2]
[390574301,1760089838434,-500.0,0.00016438,2]
[390574302,1760089838444,-431.95461505,0.00016438,2]
[390574303,1760089838453,-502.77583653,0.00016438,2]
[390574304,1760089838463,-838.04,0.00016438,2]
[390574305,1760089838474,-500.0,0.00016438,2]
[390574306,1760089838485,-500.0,0.00016438,2]
[390574307,1760089838495,-500.0,0.00016438,2]
[390574308,1760089838505,-500.0,0.00016438,2]
[390574309,1760089838515,-500.0,0.00016438,2]
[390574310,1760089838525,-500.0,0.00016438,2]
[390574311,1760089838534,-502.30765809,0.00016438,2]
[390574312,1760089838544,-500.0,0.00016438,2]
[390574313,1760089838553,-500.0,0.00016438,2]
[390574314,1760089838563,-423.9287788,0.00016438,2]
[390574315,1760089838573,-500.0,0.00016438,2]
[390574316,1760089838582,-500.0,0.00016438,2]
[390574317,1760089838591,-500.0,0.00016438,2]
[390574318,1760089838600,-502.51789228,0.00016438,2]
[390574319,1760089838610,-500.0,0.00016438,2]
[390574320,1760089838619,-500.0,0.00016438,2]
[390574321,1760089838632,-500.0,0.00016438,2]
[390574322,1760089838642,-500.0,0.00016438,2]
[390574323,1760089838652,-500.0,0.00016438,2]
[390574324,1760089838662,-202.72437659,0.00016438,2]
[390574325,1760089838672,-502.52250354,0.00016438,2]
[390574326,1760089838682,-500.0,0.00016438,2]
[390574327,1760089838691,-558.04567782,0.00016438,2]
[390574328,1760089838701,-500.0,0.00016438,2]
[390574329,1760089838711,-500.0,0.00016438,2]
[390574330,1760089838722,-500.0,0.00016438,2]
[390574331,1760089838732,-500.0,0.00016438,2]
[390574332,1760089838741,-185.49,0.00016438,2]
[390574333,1760089838751,-500.0,0.00016438,2]